Workbook

Sheet Przegląd przyjęcia
B3: Przegląd przyjęcia
B6: WYDARZENIE | D6: GOŚCIE — PODSUMOWANIE | H6: ="ZALEGŁE POTWIERDZENIA: "&Zaległe_potwierdzenia -> ZALEGŁE POTWIERDZENIA: 2
B7: 75. urodziny babci | D7: PRZEGLĄD PRÓŚB O ODPOWIEDŹ | F7: KOSZT NA GOŚCIA | H7: KWOTA BUDŻETU
D8: Potwierdzeni goście | E8: Potwierdzeni razem | F8: Jedzenie | G8: Inne | H8: Razem
B9: DATA | D9: Dorośli | E9: =SUMIF(Tabela_Goście[BĘDZIE?],"=Tak",Tabela_Goście[DOROŚLI]) -> 26 | F9: =Tabela_Posiłki[[#Totals],[KOSZT NA DOROSŁEGO]] -> 12.69 zł | G9: =Koszt_podstawowy_na_gościa -> 18.70 zł | H9: =(Podsumowanie_uczestników[[#This Row],[Jedzenie]]+Podsumowanie_uczestników[[#This Row],[Inne]])*Dorośli_razem -> 816.03 zł
B10: 14 Czerwca 2011 | D10: Dzieci | E10: =SUMIF(Tabela_Goście[BĘDZIE?],"=Tak",Tabela_Goście[DZIECI]) -> 20 | F10: =Tabela_Posiłki[[#Totals],[KOSZT NA DZIECKO]] -> 7.25 zł | G10: =Koszt_podstawowy_na_gościa -> 18.70 zł | H10: =(Podsumowanie_uczestników[[#This Row],[Jedzenie]]+Podsumowanie_uczestników[[#This Row],[Inne]])*Dzieci_razem -> 518.97 zł
D11: Suma | E11: =SUBTOTAL(109,Podsumowanie_uczestników[Potwierdzeni razem]) -> 46 | F11: ="Średnia. "&TEXT(SUBTOTAL(101,Podsumowanie_uczestników[Jedzenie]),"# ##0,00 zł") -> Średnia. 9,97 zł | G11: ="Średnia. "&TEXT(SUBTOTAL(101,Podsumowanie_uczestników[Inne]),"# ##0,00 zł") -> Średnia. 18,70 zł | H11: =SUBTOTAL(109,Podsumowanie_uczestników[Razem]) -> 1,335.00 zł
B12: GODZINA
B13: Od 14:00 do 16:00
D14: PODSUMOWANIE BUDŻETU
B15: MIEJSCE | D15: POZYCJA | E15: LICZBA | F15: KWOTA BUDŻETU | G15: CAŁKOWITY KOSZT | H15: RÓŻNICA
B16: Dom cioci Ani | D16: Jedzenie i napoje | E16: =COUNTA(Tabela_Posiłki[JEDZENIE LUB NAPÓJ]) -> 18 | F16: 500.00 zł | G16: =Tabela_Posiłki[[#Totals],[CAŁKOWITY KOSZT]] -> 475.00 zł | H16: =Przegląd_budżetu[[#This Row],[KWOTA BUDŻETU]]-Przegląd_budżetu[[#This Row],[CAŁKOWITY KOSZT]] -> 25.00 zł
D17: =Tabela1_nagłówek -> Wyposażenie i sprzęt | E17: =COUNTA(Tabela1_budżet[Wyposażenie i sprzęt]) -> 7 | F17: 400.00 zł | G17: =Tabela1_budżet[[#Totals],[Koszt]] -> 400.00 zł | H17: =Przegląd_budżetu[[#This Row],[KWOTA BUDŻETU]]-Przegląd_budżetu[[#This Row],[CAŁKOWITY KOSZT]] -> 0.00 zł
D18: =Tabela2_nagłówek -> Dekoracje | E18: =COUNTA(Tabela2_budżet[Dekoracje]) -> 4 | F18: 150.00 zł | G18: =Tabela2_budżet[[#Totals],[Koszt]] -> 175.00 zł | H18: =Przegląd_budżetu[[#This Row],[KWOTA BUDŻETU]]-Przegląd_budżetu[[#This Row],[CAŁKOWITY KOSZT]] -> -25.00 zł
D19: =Tabela3_nagłówek -> Inne | E19: =COUNTA(Tabela3_budżet[Inne]) -> 4 | F19: 300.00 zł | G19: =Tabela3_budżet[[#Totals],[Koszt]] -> 285.00 zł | H19: =Przegląd_budżetu[[#This Row],[KWOTA BUDŻETU]]-Przegląd_budżetu[[#This Row],[CAŁKOWITY KOSZT]] -> 15.00 zł
D20: Suma | E20: =SUBTOTAL(109,Przegląd_budżetu[LICZBA]) -> 33 | F20: =SUBTOTAL(109,Przegląd_budżetu[KWOTA BUDŻETU]) -> 1,350.00 zł | G20: =SUBTOTAL(109,Przegląd_budżetu[CAŁKOWITY KOSZT]) -> 1,335.00 zł | H20: =SUBTOTAL(109,Przegląd_budżetu[RÓŻNICA]) -> 15.00 zł

Sheet Lista gości
B3: Lista gości
B7: IMIĘ I NAZWISKO | C7: ADRES | D7: MIASTO | E7: WOJEWÓDZTWO | F7: KOD POCZTOWY | G7: TELEFON | H7: ADRES E-MAIL | I7: BĘDZIE? | J7: DZIECI | K7: DOROŚLI | L7: RAZEM
B8: Rodzina 1 | C8: Adres 1 | D8: Miasto 1 | E8: Województwo 1 | F8: Kod pocztowy 1 | G8: Telefon 1 | H8: Adres e-mail 1 | I8: Nie | J8: 2 | K8: 2 | L8: =SUM(Tabela_Goście[[#This Row],[DZIECI]:[DOROŚLI]]) -> 4
B9: Rodzina 2 | C9: Adres 2 | D9: Miasto 2 | E9: Województwo 2 | F9: Kod pocztowy 2 | G9: Telefon 2 | H9: Adres e-mail 2 | I9: Tak | J9: 1 | K9: 1 | L9: =SUM(Tabela_Goście[[#This Row],[DZIECI]:[DOROŚLI]]) -> 2
B10: Rodzina 3 | C10: Adres 3 | D10: Miasto 3 | E10: Województwo 3 | F10: Kod pocztowy 3 | G10: Telefon 3 | H10: Adres e-mail 3 | I10: Tak | J10: 3 | K10: 3 | L10: =SUM(Tabela_Goście[[#This Row],[DZIECI]:[DOROŚLI]]) -> 6
B11: Rodzina 4 | C11: Adres 4 | D11: Miasto 4 | E11: Województwo 4 | F11: Kod pocztowy 4 | G11: Telefon 4 | H11: Adres e-mail 4 | K11: 2 | L11: =SUM(Tabela_Goście[[#This Row],[DZIECI]:[DOROŚLI]]) -> 2
B12: Rodzina 5 | C12: Adres 5 | D12: Miasto 5 | E12: Województwo 5 | F12: Kod pocztowy 5 | G12: Telefon 5 | H12: Adres e-mail 5 | I12: Tak | J12: 4 | K12: 3 | L12: =SUM(Tabela_Goście[[#This Row],[DZIECI]:[DOROŚLI]]) -> 7
B13: Rodzina 6 | C13: Adres 6 | D13: Miasto 6 | E13: Województwo 6 | F13: Kod pocztowy 6 | G13: Telefon 6 | H13: Adres e-mail 6 | I13: Tak | J13: 2 | K13: 2 | L13: =SUM(Tabela_Goście[[#This Row],[DZIECI]:[DOROŚLI]]) -> 4
B14: Rodzina 7 | C14: Adres 7 | D14: Miasto 7 | E14: Województwo 7 | F14: Kod pocztowy 7 | G14: Telefon 7 | H14: Adres e-mail 7 | I14: Tak | J14: 1 | K14: 4 | L14: =SUM(Tabela_Goście[[#This Row],[DZIECI]:[DOROŚLI]]) -> 5
B15: Rodzina 8 | C15: Adres 8 | D15: Miasto 8 | E15: Województwo 8 | F15: Kod pocztowy 8 | G15: Telefon 8 | H15: Adres e-mail 8 | I15: Nie | J15: 5 | K15: 3 | L15: =SUM(Tabela_Goście[[#This Row],[DZIECI]:[DOROŚLI]]) -> 8
B16: Rodzina 9 | C16: Adres 9 | D16: Miasto 9 | E16: Województwo 9 | F16: Kod pocztowy 9 | G16: Telefon 9 | H16: Adres e-mail 9 | I16: Tak | J16: 3 | K16: 2 | L16: =SUM(Tabela_Goście[[#This Row],[DZIECI]:[DOROŚLI]]) -> 5
B17: Rodzina 10 | C17: Adres 10 | D17: Miasto 10 | E17: Województwo 10 | F17: Kod pocztowy 10 | G17: Telefon 10 | H17: Adres e-mail 10 | I17: Tak | K17: 4 | L17: =SUM(Tabela_Goście[[#This Row],[DZIECI]:[DOROŚLI]]) -> 4
B18: Rodzina 11 | C18: Adres 11 | D18: Miasto 11 | E18: Województwo 11 | F18: Kod pocztowy 11 | G18: Telefon 11 | H18: Adres e-mail 11 | I18: Tak | J18: 3 | K18: 5 | L18: =SUM(Tabela_Goście[[#This Row],[DZIECI]:[DOROŚLI]]) -> 8
B19: Rodzina 12 | C19: Adres 12 | D19: Miasto 12 | E19: Województwo 12 | F19: Kod pocztowy 12 | G19: Telefon 12 | H19: Adres e-mail 12 | I19: Nie | J19: 2 | K19: 3 | L19: =SUM(Tabela_Goście[[#This Row],[DZIECI]:[DOROŚLI]]) -> 5
B20: Rodzina 13 | C20: Adres 13 | D20: Miasto 13 | E20: Województwo 13 | F20: Kod pocztowy 13 | G20: Telefon 13 | H20: Adres e-mail 13 | I20: Tak | J20: 3 | K20: 2 | L20: =SUM(Tabela_Goście[[#This Row],[DZIECI]:[DOROŚLI]]) -> 5
B21: Rodzina 14 | C21: Adres 14 | D21: Miasto 14 | E21: Województwo 14 | F21: Kod pocztowy 14 | G21: Telefon 14 | H21: Adres e-mail 14 | I21: Nie | K21: 1 | L21: =SUM(Tabela_Goście[[#This Row],[DZIECI]:[DOROŚLI]]) -> 1
B22: Rodzina 15 | C22: Adres 15 | D22: Miasto 15 | E22: Województwo 15 | F22: Kod pocztowy 15 | G22: Telefon 15 | H22: Adres e-mail 15 | K22: 2 | L22: =SUM(Tabela_Goście[[#This Row],[DZIECI]:[DOROŚLI]]) -> 2

Sheet Jedzenie i napoje
B3: Jedzenie i napoje
B5: Wprowadź koszt i szacowane porcje, aby automatycznie obliczyć potrzebne zakupy i koszt na porcję na podstawie całkowitej liczby gości
B6: JEDZENIE LUB NAPÓJ | C6: CAŁKOWITY KOSZT | D6: PORCJA NA DZIECKO | E6: PORCJA NA DOROSŁEGO | F6: PORCJE RAZEM | G6: KOSZT NA PORCJĘ | H6: KOSZT NA DZIECKO | I6: KOSZT NA DOROSŁEGO | J6: UWAGI
B7: Woda | C7: 15.00 zł | D7: 0.5 | E7: 2 | F7: =(Tabela_Posiłki[[#This Row],[PORCJA NA DZIECKO]]*Dzieci_razem)+(Tabela_Posiłki[[#This Row],[PORCJA NA DOROSŁEGO]]*Dorośli_razem) -> 62 | G7: =IFERROR(Tabela_Posiłki[[#This Row],[CAŁKOWITY KOSZT]]/Tabela_Posiłki[[#This Row],[PORCJE RAZEM]],"") -> 0.24 zł | H7: =IFERROR(Tabela_Posiłki[[#This Row],[KOSZT NA PORCJĘ]]*Tabela_Posiłki[[#This Row],[PORCJA NA DZIECKO]],"") -> 0.12 zł | I7: =IFERROR(Tabela_Posiłki[[#This Row],[KOSZT NA PORCJĘ]]*Tabela_Posiłki[[#This Row],[PORCJA NA DOROSŁEGO]],"") -> 0.48 zł | J7: Butelki 2 l
B8: Pudełka soku | C8: 15.00 zł | D8: 2 | E8: 0 | F8: =(Tabela_Posiłki[[#This Row],[PORCJA NA DZIECKO]]*Dzieci_razem)+(Tabela_Posiłki[[#This Row],[PORCJA NA DOROSŁEGO]]*Dorośli_razem) -> 40 | G8: =IFERROR(Tabela_Posiłki[[#This Row],[CAŁKOWITY KOSZT]]/Tabela_Posiłki[[#This Row],[PORCJE RAZEM]],"") -> 0.38 zł | H8: =IFERROR(Tabela_Posiłki[[#This Row],[KOSZT NA PORCJĘ]]*Tabela_Posiłki[[#This Row],[PORCJA NA DZIECKO]],"") -> 0.75 zł | I8: =IFERROR(Tabela_Posiłki[[#This Row],[KOSZT NA PORCJĘ]]*Tabela_Posiłki[[#This Row],[PORCJA NA DOROSŁEGO]],"") -> 0.00 zł | J8: Jabłko i białe winogrona
B9: Wino | C9: 50.00 zł | D9: 0 | E9: 2 | F9: =(Tabela_Posiłki[[#This Row],[PORCJA NA DZIECKO]]*Dzieci_razem)+(Tabela_Posiłki[[#This Row],[PORCJA NA DOROSŁEGO]]*Dorośli_razem) -> 52 | G9: =IFERROR(Tabela_Posiłki[[#This Row],[CAŁKOWITY KOSZT]]/Tabela_Posiłki[[#This Row],[PORCJE RAZEM]],"") -> 0.96 zł | H9: =IFERROR(Tabela_Posiłki[[#This Row],[KOSZT NA PORCJĘ]]*Tabela_Posiłki[[#This Row],[PORCJA NA DZIECKO]],"") -> 0.00 zł | I9: =IFERROR(Tabela_Posiłki[[#This Row],[KOSZT NA PORCJĘ]]*Tabela_Posiłki[[#This Row],[PORCJA NA DOROSŁEGO]],"") -> 1.92 zł
B10: Tort | C10: 75.00 zł | D10: 1 | E10: 1 | F10: =(Tabela_Posiłki[[#This Row],[PORCJA NA DZIECKO]]*Dzieci_razem)+(Tabela_Posiłki[[#This Row],[PORCJA NA DOROSŁEGO]]*Dorośli_razem) -> 46 | G10: =IFERROR(Tabela_Posiłki[[#This Row],[CAŁKOWITY KOSZT]]/Tabela_Posiłki[[#This Row],[PORCJE RAZEM]],"") -> 1.63 zł | H10: =IFERROR(Tabela_Posiłki[[#This Row],[KOSZT NA PORCJĘ]]*Tabela_Posiłki[[#This Row],[PORCJA NA DZIECKO]],"") -> 1.63 zł | I10: =IFERROR(Tabela_Posiłki[[#This Row],[KOSZT NA PORCJĘ]]*Tabela_Posiłki[[#This Row],[PORCJA NA DOROSŁEGO]],"") -> 1.63 zł | J10: Zamówić w lokalnej piekarni
B11: Lody | C11: 20.00 zł | D11: 1 | E11: 1.5 | F11: =(Tabela_Posiłki[[#This Row],[PORCJA NA DZIECKO]]*Dzieci_razem)+(Tabela_Posiłki[[#This Row],[PORCJA NA DOROSŁEGO]]*Dorośli_razem) -> 59 | G11: =IFERROR(Tabela_Posiłki[[#This Row],[CAŁKOWITY KOSZT]]/Tabela_Posiłki[[#This Row],[PORCJE RAZEM]],"") -> 0.34 zł | H11: =IFERROR(Tabela_Posiłki[[#This Row],[KOSZT NA PORCJĘ]]*Tabela_Posiłki[[#This Row],[PORCJA NA DZIECKO]],"") -> 0.34 zł | I11: =IFERROR(Tabela_Posiłki[[#This Row],[KOSZT NA PORCJĘ]]*Tabela_Posiłki[[#This Row],[PORCJA NA DOROSŁEGO]],"") -> 0.51 zł
B12: Kubki puddingu | C12: 15.00 zł | D12: 1 | E12: 0 | F12: =(Tabela_Posiłki[[#This Row],[PORCJA NA DZIECKO]]*Dzieci_razem)+(Tabela_Posiłki[[#This Row],[PORCJA NA DOROSŁEGO]]*Dorośli_razem) -> 20 | G12: =IFERROR(Tabela_Posiłki[[#This Row],[CAŁKOWITY KOSZT]]/Tabela_Posiłki[[#This Row],[PORCJE RAZEM]],"") -> 0.75 zł | H12: =IFERROR(Tabela_Posiłki[[#This Row],[KOSZT NA PORCJĘ]]*Tabela_Posiłki[[#This Row],[PORCJA NA DZIECKO]],"") -> 0.75 zł | I12: =IFERROR(Tabela_Posiłki[[#This Row],[KOSZT NA PORCJĘ]]*Tabela_Posiłki[[#This Row],[PORCJA NA DOROSŁEGO]],"") -> 0.00 zł | J12: Kupić gotowe kubki: waniliowe i czekoladowe
B13: Faszerowane pieczarki | C13: 32.00 zł | D13: 1 | E13: 2 | F13: =(Tabela_Posiłki[[#This Row],[PORCJA NA DZIECKO]]*Dzieci_razem)+(Tabela_Posiłki[[#This Row],[PORCJA NA DOROSŁEGO]]*Dorośli_razem) -> 72 | G13: =IFERROR(Tabela_Posiłki[[#This Row],[CAŁKOWITY KOSZT]]/Tabela_Posiłki[[#This Row],[PORCJE RAZEM]],"") -> 0.44 zł | H13: =IFERROR(Tabela_Posiłki[[#This Row],[KOSZT NA PORCJĘ]]*Tabela_Posiłki[[#This Row],[PORCJA NA DZIECKO]],"") -> 0.44 zł | I13: =IFERROR(Tabela_Posiłki[[#This Row],[KOSZT NA PORCJĘ]]*Tabela_Posiłki[[#This Row],[PORCJA NA DOROSŁEGO]],"") -> 0.89 zł | J13: Drobne pieczarki faszerowane serem śmietankowym i kiełbasą
B14: Bruschetta | C14: 22.00 zł | D14: 0 | E14: 3 | F14: =(Tabela_Posiłki[[#This Row],[PORCJA NA DZIECKO]]*Dzieci_razem)+(Tabela_Posiłki[[#This Row],[PORCJA NA DOROSŁEGO]]*Dorośli_razem) -> 78 | G14: =IFERROR(Tabela_Posiłki[[#This Row],[CAŁKOWITY KOSZT]]/Tabela_Posiłki[[#This Row],[PORCJE RAZEM]],"") -> 0.28 zł | H14: =IFERROR(Tabela_Posiłki[[#This Row],[KOSZT NA PORCJĘ]]*Tabela_Posiłki[[#This Row],[PORCJA NA DZIECKO]],"") -> 0.00 zł | I14: =IFERROR(Tabela_Posiłki[[#This Row],[KOSZT NA PORCJĘ]]*Tabela_Posiłki[[#This Row],[PORCJA NA DOROSŁEGO]],"") -> 0.85 zł | J14: Pomidory i bazylia
B15: Wędzony łosoś | C15: 50.00 zł | D15: 1 | E15: 2 | F15: =(Tabela_Posiłki[[#This Row],[PORCJA NA DZIECKO]]*Dzieci_razem)+(Tabela_Posiłki[[#This Row],[PORCJA NA DOROSŁEGO]]*Dorośli_razem) -> 72 | G15: =IFERROR(Tabela_Posiłki[[#This Row],[CAŁKOWITY KOSZT]]/Tabela_Posiłki[[#This Row],[PORCJE RAZEM]],"") -> 0.69 zł | H15: =IFERROR(Tabela_Posiłki[[#This Row],[KOSZT NA PORCJĘ]]*Tabela_Posiłki[[#This Row],[PORCJA NA DZIECKO]],"") -> 0.69 zł | I15: =IFERROR(Tabela_Posiłki[[#This Row],[KOSZT NA PORCJĘ]]*Tabela_Posiłki[[#This Row],[PORCJA NA DOROSŁEGO]],"") -> 1.39 zł
B16: Mini bajgle | C16: 20.00 zł | D16: 1 | E16: 2 | F16: =(Tabela_Posiłki[[#This Row],[PORCJA NA DZIECKO]]*Dzieci_razem)+(Tabela_Posiłki[[#This Row],[PORCJA NA DOROSŁEGO]]*Dorośli_razem) -> 72 | G16: =IFERROR(Tabela_Posiłki[[#This Row],[CAŁKOWITY KOSZT]]/Tabela_Posiłki[[#This Row],[PORCJE RAZEM]],"") -> 0.28 zł | H16: =IFERROR(Tabela_Posiłki[[#This Row],[KOSZT NA PORCJĘ]]*Tabela_Posiłki[[#This Row],[PORCJA NA DZIECKO]],"") -> 0.28 zł | I16: =IFERROR(Tabela_Posiłki[[#This Row],[KOSZT NA PORCJĘ]]*Tabela_Posiłki[[#This Row],[PORCJA NA DOROSŁEGO]],"") -> 0.56 zł | J16: 4 torby — różne
B17: Ser śmietankowy | C17: 10.00 zł | D17: 1 | E17: 2 | F17: =(Tabela_Posiłki[[#This Row],[PORCJA NA DZIECKO]]*Dzieci_razem)+(Tabela_Posiłki[[#This Row],[PORCJA NA DOROSŁEGO]]*Dorośli_razem) -> 72 | G17: =IFERROR(Tabela_Posiłki[[#This Row],[CAŁKOWITY KOSZT]]/Tabela_Posiłki[[#This Row],[PORCJE RAZEM]],"") -> 0.14 zł | H17: =IFERROR(Tabela_Posiłki[[#This Row],[KOSZT NA PORCJĘ]]*Tabela_Posiłki[[#This Row],[PORCJA NA DZIECKO]],"") -> 0.14 zł | I17: =IFERROR(Tabela_Posiłki[[#This Row],[KOSZT NA PORCJĘ]]*Tabela_Posiłki[[#This Row],[PORCJA NA DOROSŁEGO]],"") -> 0.28 zł | J17: 2 duże pudełka
B18: Kapary | C18: 12.00 zł | D18: 1 | E18: 2 | F18: =(Tabela_Posiłki[[#This Row],[PORCJA NA DZIECKO]]*Dzieci_razem)+(Tabela_Posiłki[[#This Row],[PORCJA NA DOROSŁEGO]]*Dorośli_razem) -> 72 | G18: =IFERROR(Tabela_Posiłki[[#This Row],[CAŁKOWITY KOSZT]]/Tabela_Posiłki[[#This Row],[PORCJE RAZEM]],"") -> 0.17 zł | H18: =IFERROR(Tabela_Posiłki[[#This Row],[KOSZT NA PORCJĘ]]*Tabela_Posiłki[[#This Row],[PORCJA NA DZIECKO]],"") -> 0.17 zł | I18: =IFERROR(Tabela_Posiłki[[#This Row],[KOSZT NA PORCJĘ]]*Tabela_Posiłki[[#This Row],[PORCJA NA DOROSŁEGO]],"") -> 0.33 zł | J18: 3 słoiki
B19: Skrzrdełka z kurczaka | C19: 45.00 zł | D19: 2 | E19: 4 | F19: =(Tabela_Posiłki[[#This Row],[PORCJA NA DZIECKO]]*Dzieci_razem)+(Tabela_Posiłki[[#This Row],[PORCJA NA DOROSŁEGO]]*Dorośli_razem) -> 144 | G19: =IFERROR(Tabela_Posiłki[[#This Row],[CAŁKOWITY KOSZT]]/Tabela_Posiłki[[#This Row],[PORCJE RAZEM]],"") -> 0.31 zł | H19: =IFERROR(Tabela_Posiłki[[#This Row],[KOSZT NA PORCJĘ]]*Tabela_Posiłki[[#This Row],[PORCJA NA DZIECKO]],"") -> 0.63 zł | I19: =IFERROR(Tabela_Posiłki[[#This Row],[KOSZT NA PORCJĘ]]*Tabela_Posiłki[[#This Row],[PORCJA NA DOROSŁEGO]],"") -> 1.25 zł | J19: Kupić w lokalnym sklepie
B20: Hummus | C20: 10.00 zł | D20: 4 | E20: 6 | F20: =(Tabela_Posiłki[[#This Row],[PORCJA NA DZIECKO]]*Dzieci_razem)+(Tabela_Posiłki[[#This Row],[PORCJA NA DOROSŁEGO]]*Dorośli_razem) -> 236 | G20: =IFERROR(Tabela_Posiłki[[#This Row],[CAŁKOWITY KOSZT]]/Tabela_Posiłki[[#This Row],[PORCJE RAZEM]],"") -> 0.04 zł | H20: =IFERROR(Tabela_Posiłki[[#This Row],[KOSZT NA PORCJĘ]]*Tabela_Posiłki[[#This Row],[PORCJA NA DZIECKO]],"") -> 0.17 zł | I20: =IFERROR(Tabela_Posiłki[[#This Row],[KOSZT NA PORCJĘ]]*Tabela_Posiłki[[#This Row],[PORCJA NA DOROSŁEGO]],"") -> 0.25 zł | J20: Zrobić wieczór wcześniej
B21: Chipsy z pity i parmezanu | C21: 14.00 zł | D21: 4 | E21: 6 | F21: =(Tabela_Posiłki[[#This Row],[PORCJA NA DZIECKO]]*Dzieci_razem)+(Tabela_Posiłki[[#This Row],[PORCJA NA DOROSŁEGO]]*Dorośli_razem) -> 236 | G21: =IFERROR(Tabela_Posiłki[[#This Row],[CAŁKOWITY KOSZT]]/Tabela_Posiłki[[#This Row],[PORCJE RAZEM]],"") -> 0.06 zł | H21: =IFERROR(Tabela_Posiłki[[#This Row],[KOSZT NA PORCJĘ]]*Tabela_Posiłki[[#This Row],[PORCJA NA DZIECKO]],"") -> 0.24 zł | I21: =IFERROR(Tabela_Posiłki[[#This Row],[KOSZT NA PORCJĘ]]*Tabela_Posiłki[[#This Row],[PORCJA NA DOROSŁEGO]],"") -> 0.36 zł | J21: Zrobić wieczór wcześniej
B22: Mieszanina warzyw | C22: 30.00 zł | D22: 4 | E22: 10 | F22: =(Tabela_Posiłki[[#This Row],[PORCJA NA DZIECKO]]*Dzieci_razem)+(Tabela_Posiłki[[#This Row],[PORCJA NA DOROSŁEGO]]*Dorośli_razem) -> 340 | G22: =IFERROR(Tabela_Posiłki[[#This Row],[CAŁKOWITY KOSZT]]/Tabela_Posiłki[[#This Row],[PORCJE RAZEM]],"") -> 0.09 zł | H22: =IFERROR(Tabela_Posiłki[[#This Row],[KOSZT NA PORCJĘ]]*Tabela_Posiłki[[#This Row],[PORCJA NA DZIECKO]],"") -> 0.35 zł | I22: =IFERROR(Tabela_Posiłki[[#This Row],[KOSZT NA PORCJĘ]]*Tabela_Posiłki[[#This Row],[PORCJA NA DOROSŁEGO]],"") -> 0.88 zł | J22: Słupki marchewki, seler, brokuły, kalafior, papryka czerwona i zielona
B23: Kula serowa | C23: 15.00 zł | D23: 5 | E23: 10 | F23: =(Tabela_Posiłki[[#This Row],[PORCJA NA DZIECKO]]*Dzieci_razem)+(Tabela_Posiłki[[#This Row],[PORCJA NA DOROSŁEGO]]*Dorośli_razem) -> 360 | G23: =IFERROR(Tabela_Posiłki[[#This Row],[CAŁKOWITY KOSZT]]/Tabela_Posiłki[[#This Row],[PORCJE RAZEM]],"") -> 0.04 zł | H23: =IFERROR(Tabela_Posiłki[[#This Row],[KOSZT NA PORCJĘ]]*Tabela_Posiłki[[#This Row],[PORCJA NA DZIECKO]],"") -> 0.21 zł | I23: =IFERROR(Tabela_Posiłki[[#This Row],[KOSZT NA PORCJĘ]]*Tabela_Posiłki[[#This Row],[PORCJA NA DOROSŁEGO]],"") -> 0.42 zł | J23: Różne: ser śmietankowy, ostry ser z orzechami
B24: Krakersy | C24: 25.00 zł | D24: 5 | E24: 10 | F24: =(Tabela_Posiłki[[#This Row],[PORCJA NA DZIECKO]]*Dzieci_razem)+(Tabela_Posiłki[[#This Row],[PORCJA NA DOROSŁEGO]]*Dorośli_razem) -> 360 | G24: =IFERROR(Tabela_Posiłki[[#This Row],[CAŁKOWITY KOSZT]]/Tabela_Posiłki[[#This Row],[PORCJE RAZEM]],"") -> 0.07 zł | H24: =IFERROR(Tabela_Posiłki[[#This Row],[KOSZT NA PORCJĘ]]*Tabela_Posiłki[[#This Row],[PORCJA NA DZIECKO]],"") -> 0.35 zł | I24: =IFERROR(Tabela_Posiłki[[#This Row],[KOSZT NA PORCJĘ]]*Tabela_Posiłki[[#This Row],[PORCJA NA DOROSŁEGO]],"") -> 0.69 zł | J24: Różne
B25: Suma | C25: =SUBTOTAL(109,Tabela_Posiłki[CAŁKOWITY KOSZT]) -> 475.00 zł | D25: =SUBTOTAL(109,Tabela_Posiłki[PORCJA NA DZIECKO]) -> 34.5 | E25: =SUBTOTAL(109,Tabela_Posiłki[PORCJA NA DOROSŁEGO]) -> 65.5 | F25: =SUBTOTAL(109,Tabela_Posiłki[PORCJE RAZEM]) -> 2393 | G25: =SUBTOTAL(109,Tabela_Posiłki[KOSZT NA PORCJĘ]) -> 6.92 zł | H25: =SUBTOTAL(109,Tabela_Posiłki[KOSZT NA DZIECKO]) -> 7.25 zł | I25: =SUBTOTAL(109,Tabela_Posiłki[KOSZT NA DOROSŁEGO]) -> 12.69 zł | J25: =SUBTOTAL(109,Tabela_Posiłki[UWAGI]) -> 0

Sheet Inne ważne rzeczy
B3: Inne ważne rzeczy
B6: Wyposażenie i sprzęt | C6: Koszt | D6: Zakupiono | E6: Uwagi
B7: Wynajem pomieszczenia/hallu | C7: 250.00 zł | D7: Tak
B8: Obrusy i fartuchy | C8: 30.00 zł | D8: Tak | E8: Wynajem
B9: Stoły i krzesła | C9: 0.00 zł | E9: Wliczone w koszt wynajmu hallu
B10: Serwetki do napojów | C10: 25.00 zł
B11: Serwetki do kolacji | C11: 20.00 zł | E11: Wynajem
B12: Obsługa kelnerska | C12: 50.00 zł | E12: Wynajem
B13: Szkło | C13: 25.00 zł | E13: Wynajem
B14: Sumy | C14: =SUBTOTAL(109,Tabela1_budżet[Koszt]) -> 400.00 zł
B17: Dekoracje | C17: Koszt | D17: Zakupiono | E17: Uwagi
B18: Balony | C18: 25.00 zł
B19: Zbiornik z helem | C19: 50.00 zł | E19: Wynajem
B20: Elementy dekoracyjne | C20: 100.00 zł | D20: Tak | E20: 10 razem
B21: Szklane wazony | C21: 0.00 zł | E21: Pożyczyć od Anety
B22: Sumy | C22: =SUBTOTAL(109,Tabela2_budżet[Koszt]) -> 175.00 zł
B25: Inne | C25: Koszt | D25: Zakupiono | E25: Uwagi
B26: Zaproszenia | C26: 50.00 zł | D26: Tak
B27: Opłaty pocztowe | C27: 60.00 zł | D27: Tak
B28: Fotograf | C28: 125.00 zł | E28: 2 godziny (14:00–16:00)
B29: Pamiątki z przyjęcia | C29: 50.00 zł
B30: Sumy | C30: =SUBTOTAL(109,Tabela3_budżet[Koszt]) -> 285.00 zł

Sheet Siatka usadzenia gości
A1: Rozmieszczenie siedzeń
AH35: *1 kwadrat = ok. 1 stopy kwadratowej
A36: Uwagi | T36: =" Całkowita liczba potwierdzonych gości: "&Potwierdzeni_goście -> Całkowita liczba potwierdzonych gości: 46
T37: Zastosować można dowolne z ustawień stołów:
U38: =ROUNDUP(Potwierdzeni_goście/6,0)&" stoły okrągłe 137-centymetrowe (6 miejsc)" -> 8 stoły okrągłe 137-centymetrowe (6 miejsc)
U39: =ROUNDUP(Potwierdzeni_goście/8,0) &" stoły okrągłe 152-centymetrowe (8 miejsc)" -> 6 stoły okrągłe 152-centymetrowe (8 miejsc)
U40: =ROUNDUP(Potwierdzeni_goście/10,0)&" stoły okrągłe 182-centymetrowe (10 miejsc)" -> 5 stoły okrągłe 182-centymetrowe (10 miejsc)
U41: =ROUNDUP(Potwierdzeni_goście/6,0)& " stoły prostokątne 76 centymetrów x 182 centymetry (6 miejsc)" -> 8 stoły prostokątne 76 centymetrów x 182 centymetry (6 miejsc)
U42: =ROUNDUP(Potwierdzeni_goście/8,0)&" stoły prostokątne 76 centymetrów x 243 centymetry (8 miejsc)" -> 6 stoły prostokątne 76 centymetrów x 243 centymetry (8 miejsc)
T43: (Preferowana odległość między stołami: 1 metr)
